[Event "ESTCC 65 2019"]
[Site "Mali Losinj"]
[Date "2019.09.21"]
[Round "4.31"]
[White "Patola, Eero"]
[Black "Dalling, Peter"]
[Result "1/2-1/2"]
[ECO "A21"]
[WhiteElo "1798"]
[BlackElo "1824"]
[Annotator "NA"]
[PlyCount "62"]
[EventDate "2019.09.18"]
[EventType "team-tourn"]
[EventCountry "CRO"]
[SourceTitle "playchess.com"]
[Source "ChessBase"]
[SourceQuality "1"]
[WhiteTeam "Finland"]
[BlackTeam "Sweden"]
[WhiteTeamCountry "FIN"]
[BlackTeamCountry "SWE"]
[TimeControl "40/5400+30:1800+30"]

1. c4 {[%emt 0:00:30]} e5 {[%emt 0:00:30]} 2. Nc3 {[%emt 0:00:00]} Bb4 {[%emt 0:00:00]} 3. e4 {[%emt 0:00:00]} Nc6 {[%emt 0:00:00]} 4. Nge2 {[%emt 0:01:30]} Bc5 {[%emt 0:03:30]} 5. d3 {[%emt 0:01:30]} h6 {[%emt 0:00:30]} 6. g3 {[%emt 0:00:30]} d6 {[%emt 0:00:00]} 7. h3 {[%emt 0:00:30]} Nf6 {[%emt 0:01:00]} 8. Bg2 {[%emt 0:00:30]} a6 {[%emt 0:03:30]} 9. O-O {[%emt 0:00:00]} O-O {[%emt 0:01:30]} 10. Kh2 {[%emt 0:00:00]} Nh7 {[%emt 0:05:30]} 11. f4 {[%emt 0:00:30]} f5 {[%emt 0:00:30]} 12. exf5 {[%emt 0:00:30]} Bxf5 {[%emt 0:00:30]} 13. g4 {[%emt 0:00:30]} Bd7 {[%emt 0:00:30]} 14. f5 {[%emt 0:00:30]} Qh4 {[%emt 0:02:30]} 15. Ne4 {[%emt 0:03:30]} Nf6 {[%emt 0:03:30]} 16. Nxf6+ {[%emt 0:01:30]} Qxf6 {[%emt 0:00:30]} 17. Ng3 {[%emt 0:01:30]} Qh4 {[%emt 0:05:30]} 18. Bd2 {[%emt 0:00:30]} Bd4 {[%emt 0:00:30]} 19. Rb1 {[%emt 0:00:30]} Rab8 {[%emt 0:03:30]} 20. Be1 {[%emt 0:01:30]} Qe7 {[%emt 0:01:30]} 21. Ne4 {[%emt 0:03:30]} Nd8 {[%emt 0:02:30]} 22. b4 {[%emt 0:03:30]} c6 {[%emt 0:02:30]} 23. c5 {[%emt 0:04:30]} d5 {[%emt 0:00:30]} 24. Nc3 {[%emt 0:03:30]} Nf7 {[%emt 0:09:30]} 25. Bd2 {[%emt 0:07:30]} Qf6 {[%emt 0:01:30]} 26. Ne2 {[%emt 0:00:30]} Rfe8 {[%emt 0:00:30]} 27. Nxd4 {[%emt 0:01:30]} exd4 {[%emt 0:00:30]} 28. Bf4 {[%emt 0:00:30]} Rbc8 {[%emt 0:01:30]} 29. Qd2 {[%emt 0:01:30]} Re7 {[%emt 0:00:30]} 30. Rbe1 {[%emt 0:00:30]} Rce8 {[%emt 0:00:30]} 31. Rxe7 {[%emt 0:03:30]} Qxe7 {[%emt 0:00:30]} 1/2-1/2

[Event "ESTCC 65 2019"]
[Site "Mali Losinj"]
[Date "2019.09.21"]
[Round "4.32"]
[White "Palsson, Bertil"]
[Black "Ristoja, Aulikki"]
[Result "1-0"]
[ECO "E60"]
[WhiteElo "1784"]
[BlackElo "1558"]
[Annotator "NA"]
[PlyCount "63"]
[EventDate "2019.09.18"]
[EventType "team-tourn"]
[EventCountry "CRO"]
[SourceTitle "playchess.com"]
[Source "ChessBase"]
[SourceQuality "1"]
[WhiteTeam "Sweden"]
[BlackTeam "Finland"]
[WhiteTeamCountry "SWE"]
[BlackTeamCountry "FIN"]
[TimeControl "40/5400+30:1800+30"]

1. c4 {[%emt 0:00:30]} g6 {[%emt 0:00:30]} 2. Nf3 {[%emt 0:00:00]} d6 {[%emt 0:00:30]} 3. d4 {[%emt 0:01:00]} Bg7 {[%emt 0:03:30]} 4. g3 {[%emt 0:00:30]} Nf6 {[%emt 0:01:30]} 5. Bg2 {[%emt 0:00:30]} c6 {[%emt 0:00:30]} 6. O-O {[%emt 0:00:30]} Bf5 {[%emt 0:01:30]} 7. Nc3 {[%emt 0:00:30]} Qd7 {[%emt 0:00:30]} 8. Re1 {[%emt 0:01:30]} Bh3 {[%emt 0:01:30]} 9. Bh1 {[%emt 0:01:30]} h5 {[%emt 0:02:30]} 10. Qd3 {[%emt 0:05:30]} h4 {[%emt 0:08:30]} 11. Nxh4 {[%emt 0:01:30]} Na6 {[%emt 0:00:30]} 12. a3 {[%emt 0:01:30]} Nc7 {[%emt 0:02:30]} 13. d5 {[%emt 0:09:30]} c5 {[%emt 0:06:30]} 14. b4 {[%emt 0:03:30]} b6 {[%emt 0:03:30]} 15. Bb2 {[%emt 0:05:30]} O-O-O {[%emt 0:01:30]} 16. bxc5 {[%emt 0:04:30]} dxc5 {[%emt 0:00:30]} 17. Ne4 {[%emt 1:00:30]} Nh5 {[%emt 0:21:30]} 18. Bxg7 {[%emt 0:00:00]} Nxg7 {[%emt 0:00:30]} 19. Ng5 {[%emt 0:00:00]} Rdf8 {[%emt 0:22:15]} 20. Nxh3 {[%emt 0:00:00]} Qxh3 {[%emt 0:00:10]} 21. Bg2 {[%emt 0:00:00]} Qd7 {[%emt 0:00:41]} 22. a4 {[%emt 0:00:00]} Rh6 {[%emt 0:06:08]} 23. Nf3 {[%emt 0:00:00]} f6 {[%emt 0:02:17]} 24. h4 {[%emt 0:00:00]} Rfh8 {[%emt 0:01:42]} 25. Reb1 {[%emt 0:00:00]} Kd8 {[%emt 0:03:31]} 26. a5 {[%emt 0:00:00]} Qd6 {[%emt 0:00:53]} 27. axb6 {[%emt 0:00:00]} axb6 {[%emt 0:01:40]} 28. Ra7 {[%emt 0:00:00]} Nf5 {[%emt 0:02:40]} 29. Rb7 {[%emt 0:00:00]} b5 {[%emt 0:01:44]} 30. Ra1 {[%emt 0:00:00]} bxc4 {[%emt 0:02:06]} 31. Qxc4 {[%emt 0:00:00]} Kd7 {[%emt 0:01:04]} 32. Qb5+ {[%emt 0:00:00]} 1-0

[Event "ESTCC 65 2019"]
[Site "Mali Losinj"]
[Date "2019.09.22"]
[Round "5.2"]
[White "Wahlbom, Magnus"]
[Black "Sveshnikov, Evgeny"]
[Result "0-1"]
[ECO "B32"]
[WhiteElo "2255"]
[BlackElo "2483"]
[Annotator "ChessBase"]
[PlyCount "102"]
[EventDate "2019.09.18"]
[EventType "team-tourn"]
[EventCountry "CRO"]
[SourceTitle "playchess.com"]
[Source "ChessBase"]
[SourceQuality "1"]
[WhiteTeam "Sweden"]
[BlackTeam "Russia"]
[WhiteTeamCountry "SWE"]
[BlackTeamCountry "RUS"]
[TimeControl "40/5400+30:1800+30"]

1. e4 {[%emt 0:00:30]} c5 {[%emt 0:00:30]} 2. Nf3 {[%emt 0:00:00]} Nc6 {[%emt 0:00:00]} 3. d4 {[%emt 0:00:00]} cxd4 {[%emt 0:00:00]} 4. Nxd4 {[%emt 0:00:30]} e5 {[%emt 0:00:30]} 5. Nb5 {[%emt 0:00:00]} d6 {[%emt 0:00:00]} 6. c4 {[%emt 0:01:00]} Be7 {[%emt 0:00:00]} 7. N1c3 {[%emt 0:00:00]} a6 {[%emt 0:00:00]} 8. Na3 {[%emt 0:00:00]} f5 {[%emt 0:00:00]} 9. exf5 {[%emt 0:02:30]} Bxf5 {[%emt 0:00:30]} 10. Bd3 {[%emt 0:02:30]} Be6 {[%emt 0:00:00]} 11. O-O {[%emt 0:05:30]} Nf6 {[%emt 0:00:00]} 12. Nc2 {[%emt 0:02:30]} O-O {[%emt 0:01:30]} 13. Bg5 {[%emt 0:06:30]} Ng4 {[%emt 0:01:30]} 14. Bxe7 {[%emt 0:04:30]} Qxe7 {[%emt 0:01:30]} 15. Ne3 {[%emt 0:24:30]} Qh4 {[%emt 0:17:30]} 16. Nxg4 {[%emt 0:00:30]} Bxg4 {[%emt 0:00:30]} 17. Be2 {[%emt 0:08:30]} Be6 {[%emt 0:05:30]} 18. g3 {[%emt 0:16:30]} Qh3 {[%emt 0:01:30]} 19. Ne4 {[%emt 0:00:30]} h6 {[%emt 0:06:30]} 20. Rc1 {[%emt 0:07:03]} Nd4 {[%emt 0:02:30]} 21. f3 {[%emt 0:00:37]} b5 {[%emt 0:04:30]} 22. Nxd6 {[%emt 0:04:20]} Rad8 {[%emt 0:02:30]} 23. c5 {[%emt 0:00:17]} Bxa2 {[%emt 0:00:30]} 24. Rc3 {[%emt 0:01:03]} Qe6 {[%emt 0:04:30]} 25. b4 {[%emt 0:00:59]} Bd5 {[%emt 0:07:30]} 26. Re3 {[%emt 0:01:22]} Rf6 {[%emt 0:04:30]} 27. Rf2 {[%emt 0:00:43]} Bc6 {[%emt 0:01:30]} 28. Bd3 {[%emt 0:01:32]} Rxd6 {[%emt 0:18:30]} 29. cxd6 {[%emt 0:00:11]} Qxd6 {[%emt 0:00:30]} 30. Be4 {[%emt 0:06:19]} Bxe4 {[%emt 0:01:58]} 31. Rxe4 {[%emt 0:00:21]} Nxf3+ {[%emt 0:02:46]} 32. Qxf3 {[%emt 0:00:05]} Rxf3 {[%emt 0:01:06]} 33. Rxf3 {[%emt 0:00:02]} Qd1+ {[%emt 0:01:33]} 34. Rf1 {[%emt 0:00:06]} Qd2 {[%emt 0:00:46]} 35. Rf2 {[%emt 0:02:14]} Qc1+ {[%emt 0:04:23]} 36. Kg2 {[%emt 0:01:15]} Qc6 {[%emt 0:01:20]} 37. Rfe2 {[%emt 0:00:10]} Kf7 {[%emt 0:01:56]} 38. Kh3 {[%emt 0:01:17]} Qd6 {[%emt 0:01:47]} 39. g4 {[%emt 0:01:05]} Ke6 {[%emt 0:00:55]} 40. Kh4 {[%emt 0:00:33]} Qd8+ {[%emt 0:01:04]} 41. Kg3 {[%emt 0:30:16]} Qc7 {[%emt 0:00:26]} 42. Kh4 {[%emt 0:00:00]} Kd5 {[%emt 0:04:30]} 43. R2e3 {[%emt 0:00:00]} Qe7+ {[%emt 0:07:30]} 44. Kg3 {[%emt 0:00:00]} Qf6 {[%emt 0:00:30]} 45. Re1 {[%emt 0:00:00]} g6 {[%emt 0:03:30]} 46. h3 {[%emt 0:00:00]} h5 {[%emt 0:01:30]} 47. Rxe5+ {[%emt 0:00:00]} Qxe5+ {[%emt 0:00:00]} 48. Rxe5+ {[%emt 0:00:00]} Kxe5 {[%emt 0:00:00]} 49. gxh5 {[%emt 0:00:00]} gxh5 {[%emt 0:00:30]} 50. Kh4 {[%emt 0:00:00]} a5 {[%emt 0:00:30]} 51. bxa5 {[%emt 0:00:00]} Kd5 {[%emt 0:00:00]} 0-1

[Event "ESTCC 65 2019"]
[Site "Mali Losinj"]
[Date "2019.09.22"]
[Round "5.3"]
[White "Kalegin, Evgenij"]
[Black "Hammar, Bengt"]
[Result "1-0"]
[ECO "B50"]
[WhiteElo "2435"]
[BlackElo "2161"]
[Annotator "NA"]
[PlyCount "49"]
[EventDate "2019.09.18"]
[EventType "team-tourn"]
[EventCountry "CRO"]
[SourceTitle "playchess.com"]
[Source "ChessBase"]
[SourceQuality "1"]
[WhiteTeam "Russia"]
[BlackTeam "Sweden"]
[WhiteTeamCountry "RUS"]
[BlackTeamCountry "SWE"]
[TimeControl "40/5400+30:1800+30"]

1. e4 {[%emt 0:00:30]} c5 {[%emt 0:00:30]} 2. Nf3 {[%emt 0:00:00]} d6 {[%emt 0:00:30]} 3. c3 {[%emt 0:00:00]} Nf6 {[%emt 0:01:30]} 4. h3 {[%emt 0:00:00]} Nc6 {[%emt 0:01:30]} 5. Bd3 {[%emt 0:00:00]} d5 {[%emt 0:04:30]} 6. exd5 {[%emt 0:01:30]} Nxd5 {[%emt 0:01:30]} 7. O-O {[%emt 0:01:30]} g6 {[%emt 0:02:30]} 8. Bb5 {[%emt 0:00:30]} Qb6 {[%emt 0:02:30]} 9. Bc4 {[%emt 0:15:30]} Nf6 {[%emt 0:01:30]} 10. d4 {[%emt 0:00:30]} cxd4 {[%emt 0:02:30]} 11. cxd4 {[%emt 0:03:30]} Na5 {[%emt 0:04:30]} 12. Ne5 {[%emt 0:05:30]} Nxc4 {[%emt 0:01:30]} 13. Qa4+ {[%emt 0:00:30]} Nd7 {[%emt 0:03:30]} 14. Nxc4 {[%emt 0:01:30]} Qc6 {[%emt 0:02:30]} 15. Qxc6 {[%emt 0:01:30]} bxc6 {[%emt 0:00:30]} 16. Re1 {[%emt 0:00:00]} e6 {[%emt 0:00:30]} 17. Bf4 {[%emt 0:00:00]} Bg7 {[%emt 0:01:30]} 18. Nbd2 {[%emt 0:12:30]} O-O {[%emt 0:03:30]} 19. Nb3 {[%emt 0:00:30]} Nb6 {[%emt 0:02:30]} 20. Ne5 {[%emt 0:04:30]} Na4 {[%emt 0:03:30]} 21. Re2 {[%emt 0:04:30]} Ba6 {[%emt 0:06:30]} 22. Rc2 {[%emt 0:00:30]} Bxe5 {[%emt 0:04:30]} 23. dxe5 {[%emt 0:03:30]} Bd3 {[%emt 0:01:30]} 24. Rd2 {[%emt 0:06:30]} Be4 {[%emt 0:02:30]} 25. Rd4 {[%emt 0:00:30]} 1-0

[Event "ESTCC 65 2019"]
[Site "Mali Losinj"]
[Date "2019.09.22"]
[Round "5.5"]
[White "Werner, Clemens"]
[Black "Huss, Andreas"]
[Result "0-1"]
[ECO "B16"]
[WhiteElo "2286"]
[BlackElo "2261"]
[Annotator "NA"]
[PlyCount "120"]
[EventDate "2019.09.18"]
[EventType "team-tourn"]
[EventCountry "CRO"]
[SourceTitle "playchess.com"]
[Source "ChessBase"]
[SourceQuality "1"]
[WhiteTeam "Germany"]
[BlackTeam "Switzerland"]
[WhiteTeamCountry "GER"]
[BlackTeamCountry "SUI"]
[TimeControl "40/5400+30:1800+30"]

1. e4 {[%emt 0:00:30]} c6 {[%emt 0:00:30]} 2. d4 {[%emt 0:00:30]} d5 {[%emt 0:00:00]} 3. Nd2 {[%emt 0:00:30]} dxe4 {[%emt 0:01:00]} 4. Nxe4 {[%emt 0:00:30]} Nf6 {[%emt 0:00:30]} 5. Nxf6+ {[%emt 0:00:30]} gxf6 {[%emt 0:00:30]} 6. c3 {[%emt 0:00:30]} Bf5 {[%emt 0:00:00]} 7. Nf3 {[%emt 0:01:30]} e6 {[%emt 0:01:00]} 8. g3 {[%emt 0:04:30]} Nd7 {[%emt 0:02:30]} 9. Qe2 {[%emt 0:04:30]} Qc7 {[%emt 0:05:30]} 10. Bg2 {[%emt 0:03:30]} O-O-O {[%emt 0:06:30]} 11. O-O {[%emt 0:00:30]} Bg4 {[%emt 0:08:30]} 12. a4 {[%emt 0:02:30]} h5 {[%emt 0:05:30]} 13. h3 {[%emt 0:03:30]} Bxf3 {[%emt 0:01:30]} 14. Qxf3 {[%emt 0:00:30]} f5 {[%emt 0:05:30]} 15. b4 {[%emt 0:09:30]} Bd6 {[%emt 0:20:30]} 16. b5 {[%emt 0:05:30]} h4 {[%emt 0:07:30]} 17. Bg5 {[%emt 0:05:30]} Rdg8 {[%emt 0:00:30]} 18. Bxh4 {[%emt 0:08:30]} f4 {[%emt 0:01:30]} 19. bxc6 {[%emt 0:06:30]} bxc6 {[%emt 0:05:30]} 20. Qd3 {[%emt 0:07:30]} f6 {[%emt 0:10:38]} 21. Rab1 {[%emt 0:08:30]} fxg3 {[%emt 0:01:58]} 22. Qa6+ {[%emt 0:06:04]} Kd8 {[%emt 0:00:04]} 23. Rb7 {[%emt 0:00:27]} gxf2+ {[%emt 0:05:22]} 24. Rxf2 {[%emt 0:02:23]} Qc8 {[%emt 0:00:49]} 25. Bxf6+ {[%emt 0:03:14]} Nxf6 {[%emt 0:00:16]} 26. Rxf6 {[%emt 0:00:21]} Rh7 {[%emt 0:02:52]} 27. Qa5+ {[%emt 0:02:40]} Bc7 {[%emt 0:00:08]} 28. Qxa7 {[%emt 0:04:48]} Qxb7 {[%emt 0:01:18]} 29. Qxb7 {[%emt 0:00:10]} Bh2+ {[%emt 0:00:10]} 30. Kxh2 {[%emt 0:00:09]} Rxb7 {[%emt 0:00:02]} 31. Rf2 {[%emt 0:00:34]} Rb3 {[%emt 0:03:08]} 32. Bxc6 {[%emt 0:03:03]} Rxc3 {[%emt 0:00:03]} 33. Bg2 {[%emt 0:01:49]} Ra3 {[%emt 0:00:33]} 34. Bc6 {[%emt 0:01:33]} Kc7 {[%emt 0:00:17]} 35. Bg2 {[%emt 0:01:40]} Kd6 {[%emt 0:00:54]} 36. Rd2 {[%emt 0:00:49]} Rxa4 {[%emt 0:00:30]} 37. d5 {[%emt 0:00:06]} e5 {[%emt 0:00:30]} 38. Rc2 {[%emt 0:00:28]} e4 {[%emt 0:00:29]} 39. Rc6+ {[%emt 0:00:10]} Kxd5 {[%emt 0:00:11]} 40. Rc2 {[%emt 0:00:30]} Kd4 {[%emt 0:00:29]} 41. Bf1 {[%emt 0:03:02]} Ra1 {[%emt 0:07:19]} 42. Be2 {[%emt 0:00:30]} Ke3 {[%emt 0:00:30]} 43. Bg4 {[%emt 0:00:30]} Kd3 {[%emt 0:02:30]} 44. Rc7 {[%emt 0:00:30]} Rd8 {[%emt 0:03:30]} 45. Kg3 {[%emt 0:01:30]} e3 {[%emt 0:01:30]} 46. Re7 {[%emt 0:00:30]} Rg1+ {[%emt 0:01:30]} 47. Kf4 {[%emt 0:00:00]} Rf8+ {[%emt 0:01:30]} 48. Kg5 {[%emt 0:00:00]} Rg8+ {[%emt 0:00:59]} 49. Kf4 {[%emt 0:02:30]} Rf8+ {[%emt 0:01:32]} 50. Kg5 {[%emt 0:00:30]} Rg8+ {[%emt 0:03:19]} 51. Kf4 {[%emt 0:02:30]} Rf1+ {[%emt 0:00:15]} 52. Kg3 {[%emt 0:00:30]} e2 {[%emt 0:03:58]} 53. Rxe2 {[%emt 0:02:30]} Rxg4+ {[%emt 0:00:11]} 54. Kxg4 {[%emt 0:00:00]} Kxe2 {[%emt 0:00:06]} 55. h4 {[%emt 0:00:00]} Ke3 {[%emt 0:00:27]} 56. h5 {[%emt 0:00:30]} Ke4 {[%emt 0:00:15]} 57. Kg5 {[%emt 0:00:00]} Ke5 {[%emt 0:00:31]} 58. Kg6 {[%emt 0:00:00]} Ke6 {[%emt 0:01:00]} 59. h6 {[%emt 0:01:30]} Rg1+ {[%emt 0:00:12]} 60. Kh7 {[%emt 0:00:30]} Kf7 {[%emt 0:00:14]} 0-1

[Event "ESTCC 65 2019"]
[Site "Mali Losinj"]
[Date "2019.09.22"]
[Round "5.6"]
[White "Vucenovic, Dragomir"]
[Black "Kierzek, Matthias"]
[Result "0-1"]
[ECO "A06"]
[WhiteElo "2154"]
[BlackElo "2186"]
[Annotator "NA"]
[PlyCount "96"]
[EventDate "2019.09.18"]
[EventType "team-tourn"]
[EventCountry "CRO"]
[SourceTitle "playchess.com"]
[Source "ChessBase"]
[SourceQuality "1"]
[WhiteTeam "Switzerland"]
[BlackTeam "Germany"]
[WhiteTeamCountry "SUI"]
[BlackTeamCountry "GER"]
[TimeControl "40/5400+30:1800+30"]

1. Nf3 {[%emt 0:00:30]} d5 {[%emt 0:00:30]} 2. b3 {[%emt 0:00:00]} Bg4 {[%emt 0:00:00]} 3. g3 {[%emt 0:01:00]} Nd7 {[%emt 0:01:00]} 4. Bg2 {[%emt 0:00:00]} e5 {[%emt 0:02:30]} 5. d3 {[%emt 0:00:00]} Ngf6 {[%emt 0:01:30]} 6. O-O {[%emt 0:02:30]} Bd6 {[%emt 0:02:30]} 7. Bb2 {[%emt 0:06:30]} O-O {[%emt 0:05:30]} 8. Nc3 {[%emt 0:18:30]} c6 {[%emt 0:01:30]} 9. e4 {[%emt 0:03:30]} Re8 {[%emt 0:14:30]} 10. Qe1 {[%emt 0:03:30]} d4 {[%emt 0:01:30]} 11. Ne2 {[%emt 0:00:30]} b5 {[%emt 0:04:30]} 12. a3 {[%emt 0:03:30]} c5 {[%emt 0:05:30]} 13. h3 {[%emt 0:01:30]} Bxf3 {[%emt 0:04:30]} 14. Bxf3 {[%emt 0:00:30]} c4 {[%emt 0:00:30]} 15. Bg2 {[%emt 0:01:30]} Nc5 {[%emt 0:05:30]} 16. b4 {[%emt 0:05:30]} cxd3 {[%emt 0:03:30]} 17. bxc5 {[%emt 0:00:30]} dxe2 {[%emt 0:00:30]} 18. Qxe2 {[%emt 0:00:30]} Bxc5 {[%emt 0:00:30]} 19. Qxb5 {[%emt 0:05:30]} Nd7 {[%emt 0:00:30]} 20. Rfb1 {[%emt 0:15:30]} Rc8 {[%emt 0:03:30]} 21. h4 {[%emt 0:02:30]} Bb6 {[%emt 0:04:30]} 22. Bh3 {[%emt 0:03:30]} Re7 {[%emt 0:00:30]} 23. a4 {[%emt 0:02:30]} Rc5 {[%emt 0:06:30]} 24. Qe2 {[%emt 0:08:00]} Qc7 {[%emt 0:07:30]} 25. Rc1 {[%emt 0:01:03]} Re8 {[%emt 0:01:30]} 26. Ba3 {[%emt 0:02:37]} Rc3 {[%emt 0:01:30]} 27. Kg2 {[%emt 0:02:17]} Nf6 {[%emt 0:02:40]} 28. Bb2 {[%emt 0:01:16]} Rc5 {[%emt 0:01:14]} 29. Ba3 {[%emt 0:00:30]} Rc6 {[%emt 0:03:40]} 30. Kh1 {[%emt 0:05:14]} Bc5 {[%emt 0:04:15]} 31. c4 {[%emt 0:03:43]} Bxa3 {[%emt 0:02:46]} 32. Rxa3 {[%emt 0:00:01]} Rb6 {[%emt 0:00:18]} 33. a5 {[%emt 0:01:06]} Rb4 {[%emt 0:00:28]} 34. c5 {[%emt 0:00:22]} Qc6 {[%emt 0:00:24]} 35. Bg2 {[%emt 0:00:13]} Reb8 {[%emt 0:00:41]} 36. Ra2 {[%emt 0:00:31]} R8b5 {[%emt 0:01:21]} 37. g4 {[%emt 0:00:32]} h6 {[%emt 0:00:43]} 38. g5 {[%emt 0:01:20]} hxg5 {[%emt 0:00:08]} 39. hxg5 {[%emt 0:00:01]} Nd7 {[%emt 0:01:14]} 40. Qg4 {[%emt 0:00:44]} Rxc5 {[%emt 0:00:00]} 41. Rxc5 {[%emt 0:02:30]} Nxc5 {[%emt 0:02:38]} 42. g6 {[%emt 0:02:30]} fxg6 {[%emt 0:04:30]} 43. Rc2 {[%emt 0:09:01]} d3 {[%emt 0:09:30]} 44. Rc3 {[%emt 0:00:51]} Rb1+ {[%emt 0:01:30]} 45. Kh2 {[%emt 0:00:37]} d2 {[%emt 0:00:30]} 46. Bf3 {[%emt 0:00:15]} Rc1 {[%emt 0:04:24]} 47. Re3 {[%emt 0:01:04]} Qf6 {[%emt 0:04:33]} 48. Qc8+ {[%emt 0:00:25]} Qf8 {[%emt 0:00:16]} 0-1

[Event "ESTCC 65 2019"]
[Site "Mali Losinj"]
[Date "2019.09.22"]
[Round "5.7"]
[White "Herbrechtsmeier, Christof"]
[Black "Hohler, Peter"]
[Result "1-0"]
[ECO "C78"]
[WhiteElo "2210"]
[BlackElo "2047"]
[Annotator "NA"]
[PlyCount "105"]
[EventDate "2019.09.18"]
[EventType "team-tourn"]
[EventCountry "CRO"]
[SourceTitle "playchess.com"]
[Source "ChessBase"]
[SourceQuality "1"]
[WhiteTeam "Germany"]
[BlackTeam "Switzerland"]
[WhiteTeamCountry "GER"]
[BlackTeamCountry "SUI"]
[TimeControl "40/5400+30:1800+30"]

1. e4 {[%emt 0:00:30]} e5 {[%emt 0:00:30]} 2. Nf3 {[%emt 0:01:30]} Nc6 {[%emt 0:00:30]} 3. Bb5 {[%emt 0:00:00]} a6 {[%emt 0:00:00]} 4. Ba4 {[%emt 0:00:00]} Nf6 {[%emt 0:00:00]} 5. O-O {[%emt 0:00:30]} b5 {[%emt 0:01:30]} 6. Bb3 {[%emt 0:00:00]} Bb7 {[%emt 0:00:00]} 7. c3 {[%emt 0:01:00]} Nxe4 {[%emt 0:12:00]} 8. d4 {[%emt 0:00:30]} exd4 {[%emt 0:01:30]} 9. Re1 {[%emt 0:00:30]} d5 {[%emt 0:00:30]} 10. Ng5 {[%emt 0:00:30]} Qd7 {[%emt 0:03:30]} 11. f3 {[%emt 0:01:30]} h6 {[%emt 0:00:30]} 12. Nxf7 {[%emt 0:00:00]} Qxf7 {[%emt 0:10:30]} 13. fxe4 {[%emt 0:00:00]} Ne7 {[%emt 0:05:30]} 14. exd5 {[%emt 0:03:30]} Bxd5 {[%emt 0:02:30]} 15. cxd4 {[%emt 0:08:30]} O-O-O {[%emt 0:03:30]} 16. Nc3 {[%emt 0:03:30]} Qg6 {[%emt 0:05:30]} 17. Nxd5 {[%emt 0:02:30]} Nxd5 {[%emt 0:00:30]} 18. Qf3 {[%emt 0:05:30]} c6 {[%emt 0:04:30]} 19. Bd2 {[%emt 0:06:30]} Bd6 {[%emt 0:05:30]} 20. Bxd5 {[%emt 0:22:30]} cxd5 {[%emt 0:00:30]} 21. Qh3+ {[%emt 0:02:30]} Kb7 {[%emt 0:01:30]} 22. Ba5 {[%emt 0:02:30]} Rde8 {[%emt 0:09:30]} 23. Qd7+ {[%emt 0:04:30]} Kb8 {[%emt 0:00:30]} 24. Rac1 {[%emt 0:10:30]} Rc8 {[%emt 0:11:30]} 25. Kh1 {[%emt 0:10:18]} Bf4 {[%emt 0:08:56]} 26. Rxc8+ {[%emt 0:03:17]} Rxc8 {[%emt 0:00:34]} 27. Qxd5 {[%emt 0:00:30]} Re8 {[%emt 0:03:12]} 28. Rf1 {[%emt 0:02:04]} Qd3 {[%emt 0:04:12]} 29. Ra1 {[%emt 0:01:58]} Qe4 {[%emt 0:04:22]} 30. Qf7 {[%emt 0:00:53]} g5 {[%emt 0:00:45]} 31. Qf6 {[%emt 0:02:01]} Qe6 {[%emt 0:00:00]} 32. Qxe6 {[%emt 0:00:47]} Rxe6 {[%emt 0:00:34]} 33. g3 {[%emt 0:00:00]} Bc7 {[%emt 0:00:16]} 34. Re1 {[%emt 0:00:29]} Rxe1+ {[%emt 0:00:21]} 35. Bxe1 {[%emt 0:00:02]} Kb7 {[%emt 0:00:45]} 36. d5 {[%emt 0:02:02]} Be5 {[%emt 0:00:26]} 37. b3 {[%emt 0:00:12]} Kc7 {[%emt 0:00:46]} 38. Bb4 {[%emt 0:00:14]} Bd6 {[%emt 0:00:39]} 39. Ba5+ {[%emt 0:00:52]} Kd7 {[%emt 0:00:13]} 40. Kg2 {[%emt 0:00:41]} g4 {[%emt 0:00:56]} 41. Bd2 {[%emt 0:02:10]} h5 {[%emt 0:03:33]} 42. Kf2 {[%emt 0:03:30]} Bc5+ {[%emt 0:06:30]} 43. Be3 {[%emt 0:00:30]} Be7 {[%emt 0:00:30]} 44. Bf4 {[%emt 0:01:30]} Bc5+ {[%emt 0:02:30]} 45. Ke2 {[%emt 0:03:30]} Ke7 {[%emt 0:00:30]} 46. Be3 {[%emt 0:00:30]} Bd6 {[%emt 0:02:50]} 47. Kd3 {[%emt 0:01:30]} Kf6 {[%emt 0:00:28]} 48. Ke4 {[%emt 0:00:30]} Bb8 {[%emt 0:00:47]} 49. Bd4+ {[%emt 0:03:30]} Kg6 {[%emt 0:00:19]} 50. Be5 {[%emt 0:00:30]} Ba7 {[%emt 0:00:11]} 51. d6 {[%emt 0:00:30]} Kf7 {[%emt 0:01:41]} 52. Kf5 {[%emt 0:00:30]} Bg1 {[%emt 0:00:20]} 53. Bf6 {[%emt 0:00:30]} 1-0

[Event "ESTCC 65 2019"]
[Site "Mali Losinj"]
[Date "2019.09.22"]
[Round "5.8"]
[White "Illi, Hans-Joerg"]
[Black "Kiefer, Gerhard"]
[Result "0-1"]
[ECO "A48"]
[WhiteElo "1987"]
[BlackElo "2227"]
[Annotator "NA"]
[PlyCount "68"]
[EventDate "2019.09.18"]
[EventType "team-tourn"]
[EventCountry "CRO"]
[SourceTitle "playchess.com"]
[Source "ChessBase"]
[SourceQuality "1"]
[WhiteTeam "Switzerland"]
[BlackTeam "Germany"]
[WhiteTeamCountry "SUI"]
[BlackTeamCountry "GER"]
[TimeControl "40/5400+30:1800+30"]

1. d4 {[%emt 0:00:30]} Nf6 {[%emt 0:00:30]} 2. Nf3 {[%emt 0:00:30]} g6 {[%emt 0:00:00]} 3. Bg5 {[%emt 0:00:30]} Bg7 {[%emt 0:00:00]} 4. Nbd2 {[%emt 0:00:30]} O-O {[%emt 0:00:30]} 5. c3 {[%emt 0:00:00]} d6 {[%emt 0:00:00]} 6. e4 {[%emt 0:01:00]} h6 {[%emt 0:01:00]} 7. Bh4 {[%emt 0:00:00]} c5 {[%emt 0:00:30]} 8. dxc5 {[%emt 0:07:00]} dxc5 {[%emt 0:00:30]} 9. Bc4 {[%emt 0:01:30]} Nc6 {[%emt 0:00:30]} 10. Qc2 {[%emt 0:01:30]} Nh5 {[%emt 0:01:30]} 11. O-O {[%emt 0:03:30]} Na5 {[%emt 0:08:30]} 12. Be2 {[%emt 0:03:30]} Nf4 {[%emt 0:02:30]} 13. Rfe1 {[%emt 0:00:30]} Nxe2+ {[%emt 0:04:30]} 14. Rxe2 {[%emt 0:00:30]} Be6 {[%emt 0:03:30]} 15. Rd1 {[%emt 0:04:30]} Qc7 {[%emt 0:11:30]} 16. b3 {[%emt 0:08:30]} Nc6 {[%emt 0:01:30]} 17. Bg3 {[%emt 0:06:30]} Qa5 {[%emt 0:01:30]} 18. e5 {[%emt 0:10:30]} Rad8 {[%emt 0:02:30]} 19. Ne4 {[%emt 0:12:30]} Rxd1+ {[%emt 0:11:30]} 20. Qxd1 {[%emt 0:00:30]} Bg4 {[%emt 0:00:00]} 21. Ned2 {[%emt 0:05:30]} Qxc3 {[%emt 0:04:00]} 22. h3 {[%emt 0:02:30]} Bxf3 {[%emt 0:08:30]} 23. Nxf3 {[%emt 0:01:30]} Rd8 {[%emt 0:00:30]} 24. Qc2 {[%emt 0:01:30]} Qxc2 {[%emt 0:02:30]} 25. Rxc2 {[%emt 0:00:30]} Rd1+ {[%emt 0:00:00]} 26. Kh2 {[%emt 0:00:30]} b6 {[%emt 0:00:00]} 27. Re2 {[%emt 0:05:30]} e6 {[%emt 0:01:30]} 28. h4 {[%emt 0:06:53]} Kf8 {[%emt 0:04:30]} 29. Bf4 {[%emt 0:03:36]} Ke8 {[%emt 0:09:30]} 30. g4 {[%emt 0:01:06]} Kd7 {[%emt 0:02:05]} 31. Kg2 {[%emt 0:00:51]} Nd4 {[%emt 0:02:41]} 32. Nxd4 {[%emt 0:04:06]} Rxd4 {[%emt 0:00:08]} 33. Kf3 {[%emt 0:03:08]} h5 {[%emt 0:01:31]} 34. Kg3 {[%emt 0:01:54]} hxg4 {[%emt 0:00:00]} 0-1